bitfinex/quotes_ETHUSD_20250923
["timestamp","ask_amount","ask_price","bid_price","bid_amount"]
[1758595566814,2.40240344,4162.5,4160.5,0.4709]
[1758595566815,3.0,4162.3,4160.5,0.4709]
[1758595567014,3.0,4162.3,4160.6,0.0979]
[1758595567015,3.0,4162.1,4160.6,0.0979]
[1758595567245,3.0,4161.9,4160.7,0.4709]
[1758595567454,4.56320151,4161.8,4160.8,0.11873383]
[1758595567628,4.05,4161.8,4160.9,0.5656]
[1758595567824,4.05,4161.7,4161.0,0.11873268]
[1758595568024,0.8446705,4162.5,4161.0,0.11873268]
[1758595568025,4.05,4161.9,4161.3,15.96044879]
[1758595568224,4.05,4161.9,4161.4,0.5656]
[1758595568435,4.05,4161.9,4161.5,0.0947]
[1758595568642,4.05,4161.9,4161.6,0.5656]
[1758595568843,4.05,4161.9,4161.7,0.4709]
[1758595569017,4.05,4161.9,4161.4,0.0947]
[1758595569217,4.05,4161.9,4161.5,0.4709]
[1758595569431,4.05,4161.9,4161.5,0.0947]
[1758595569631,4.05,4161.9,4161.6,0.5656]
[1758595569850,4.05,4161.9,4161.7,0.4709]
[1758595570457,4.05,4161.9,4161.5,0.004]
[1758595570637,4.05,4161.9,4161.6,0.4709]
[1758595570951,6.45275646,4161.9,4161.7,0.4709]
[1758595571250,2.40280647,4161.8,4161.5,0.004]
[1758595571462,4.05,4161.9,4161.5,0.004]
[1758595571463,4.05,4161.7,4161.5,0.004]
[1758595571645,4.05,4161.7,4161.6,0.5656]
[1758595572018,4.05,4161.7,4161.6,0.4709]
[1758595572221,4.05,4161.7,4161.5,0.004]
[1758595572563,4.05,4161.7,4161.6,0.4709]
[1758595572721,4.05,4161.7,4161.6,0.5656]
[1758595573064,4.05,4161.7,4161.5,0.004]
[1758595573268,2.65172195,4161.6,4161.5,0.004]
[1758595574061,2.40292195,4161.6,4161.5,0.004]
[1758595574230,4.455,4161.7,4161.5,0.004]
[1758595574434,2.40292195,4161.6,4161.5,0.004]
[1758595576036,4.455,4161.7,4161.5,0.004]
[1758595576339,9.46292195,4161.6,4161.5,0.004]
[1758595576848,10.68554411,4161.6,4161.5,0.004]
[1758595577044,11.14384411,4161.6,4161.5,0.004]
[1758595578364,12.67057498,4161.6,4161.5,0.004]
[1758595580372,16.65996653,4161.6,4161.5,0.004]
[1758595582049,21.93188308,4161.6,4161.5,0.004]
[1758595582850,18.93188308,4161.6,4161.5,0.004]
[1758595583973,19.78796653,4161.6,4161.5,0.004]
[1758595584961,18.93188308,4161.6,4161.5,0.004]
[1758595586688,19.02821187,4161.6,4161.5,0.004]
[1758595589491,20.31233705,4161.6,4161.5,0.004]
[1758595589866,18.47358308,4161.6,4161.5,0.004]
[1758595590062,18.93188308,4161.6,4161.5,0.004]
[1758595590368,20.21600826,4161.6,4161.5,0.004]
[1758595591090,13.62970826,4161.6,4161.5,0.004]
[1758595591259,18.24498308,4161.6,4161.5,0.004]
[1758595591681,20.21600826,4161.6,4161.5,0.004]
[1758595592382,18.47358308,4161.6,4161.5,0.004]
[1758595592982,18.93188308,4161.6,4161.5,0.004]
[1758595593353,2.40321068,4161.1,4161.0,0.004]
[1758595593560,8.41625522,4161.1,4161.0,0.004]
[1758595593960,8.41653799,4161.1,4161.0,0.004]
[1758595594174,7.56185349,4161.1,4161.0,0.004]
[1758595595192,7.56185349,4161.1,4161.0,0.529]
[1758595595193,4.78473087,4161.1,4161.0,0.529]
[1758595595384,4.90473087,4161.1,4161.0,0.529]
[1758595595566,4.90473087,4161.1,4161.0,0.4343]
[1758595595567,7.94931761,4161.1,4161.0,0.4343]
[1758595596488,4.90473087,4161.1,4161.0,0.529]
[1758595596656,7.30794155,4161.1,4161.0,0.529]
[1758595596856,7.30794155,4161.1,4161.0,0.004]
[1758595597093,8.57235586,4161.1,4161.0,0.004]
[1758595598560,8.93461358,4161.1,4161.0,0.004]
[1758595598965,8.70601358,4161.1,4161.0,0.004]
[1758595599696,10.18491358,4161.1,4161.0,0.004]
[1758595600202,17.24491358,4161.1,4161.0,0.004]
[1758595601196,2.40373058,4160.2,4160.1,0.02]
[1758595601362,7.18896476,4160.2,4160.1,0.02]
[1758595601765,4.56237696,4160.2,4160.1,0.4503]
[1758595602102,4.56237696,4160.2,4160.1,0.545]
[1758595602301,6.96610754,4160.2,4160.1,0.545]
[1758595603087,6.96610754,4160.2,4160.1,0.4503]
[1758595603506,6.96610754,4160.2,4160.1,0.02]
[1758595604718,6.96610754,4160.2,4160.1,0.4503]
[1758595604921,8.17507401,4160.2,4160.1,0.02]
[1758595607626,8.39814488,4160.2,4160.1,0.02]
[1758595608018,6.96610754,4160.2,4160.1,0.024]
[1758595609632,7.18924964,4160.2,4160.1,0.024]
[1758595609816,7.41834964,4160.2,4160.1,0.024]
[1758595609999,7.1892549,4160.2,4160.1,0.024]
[1758595610205,7.83119231,4160.2,4160.1,0.024]
[1758595610525,9.4203264,4160.2,4160.1,0.024]
[1758595610905,9.55419943,4160.2,4160.1,0.024]
[1758595611436,9.4203264,4160.2,4160.1,0.024]
[1758595611732,8.77838899,4160.2,4160.1,0.024]
[1758595612030,17.19582884,4160.2,4160.1,0.024]
[1758595612805,18.05174539,4160.2,4160.1,0.024]
[1758595613205,17.19582884,4160.2,4160.1,0.024]
[1758595614019,18.05174539,4160.2,4160.1,0.024]
[1758595614203,12.54904539,4160.2,4160.1,0.024]
[1758595614415,15.74312884,4160.2,4160.1,0.024]
[1758595614706,10.1992549,4160.2,4160.1,0.024]
[1758595615048,14.02610754,4160.2,4160.1,0.5858]
[1758595615758,14.02610754,4160.2,4160.1,0.024]
[1758595615759,14.24906234,4160.2,4160.1,0.024]
[1758595616330,14.47816234,4160.2,4160.1,0.024]
[1758595616523,16.20924558,4160.2,4160.1,0.024]
[1758595616733,11.84533176,4160.2,4160.1,0.024]
[1758595616941,14.24906234,4160.2,4160.1,0.4911]
[1758595617238,14.24906234,4160.2,4160.1,0.024]
[1758595617940,14.24906234,4160.2,4160.1,0.4911]
[1758595617941,0.73533176,4160.2,4160.1,0.4911]
[1758595618177,4.56237696,4160.2,4160.1,0.024]
[1758595618456,6.96610754,4160.2,4160.1,0.024]
[1758595618628,7.1891473,4160.2,4160.1,0.024]
[1758595618828,8.42042928,4160.2,4160.1,0.024]
[1758595619455,8.42045868,4160.2,4160.1,0.024]
[1758595620223,0.73543491,4160.2,4160.1,0.024]
[1758595620423,0.51237696,4160.2,4160.1,0.5858]
[1758595620636,6.96610754,4160.2,4160.1,0.5858]
[1758595621154,7.1891709,4160.2,4160.1,0.024]
[1758595621562,4.78544032,4160.2,4160.1,0.024]
[1758595621906,7.1891709,4160.2,4160.1,0.024]
[1758595623054,6.96610754,4160.2,4160.1,0.024]
[1758595623246,7.18916921,4160.2,4160.1,0.024]
[1758595624552,8.64955273,4160.2,4160.1,0.024]
[1758595625587,9.08115273,4160.2,4160.1,0.024]
[1758595625793,10.64908186,4160.2,4160.1,0.024]
[1758595625953,10.00705672,4160.2,4160.1,0.024]
[1758595626867,8.55435672,4160.2,4160.1,0.024]
[1758595627065,10.63235672,4160.2,4160.1,0.024]
[1758595627565,10.86145672,4160.2,4160.1,0.024]
[1758595627864,11.29305672,4160.2,4160.1,0.024]
[1758595629688,12.08505672,4160.2,4160.1,0.024]
[1758595629872,12.94097327,4160.2,4160.1,0.024]
[1758595630074,12.08405672,4160.2,4160.1,0.024]
[1758595632352,12.94148733,4160.2,4160.1,0.024]
[1758595632978,20.00148733,4160.2,4160.1,0.024]
[1758595633499,20.00334186,4160.2,4160.1,0.024]
[1758595633790,19.14606704,4160.2,4160.1,0.024]
[1758595633993,15.29396222,4160.2,4160.1,0.024]
[1758595634178,19.34296222,4160.2,4160.1,0.024]
[1758595634698,19.57206222,4160.2,4160.1,0.024]
[1758595635058,13.21596222,4160.2,4160.1,0.024]
[1758595635255,8.78894812,4160.2,4160.1,0.024]
[1758595635490,4.78644895,4160.2,4160.1,0.5848]
[1758595635701,7.32419816,4160.2,4160.1,0.024]
[1758595635887,7.96756255,4160.2,4160.1,0.024]
[1758595636792,7.96756255,4160.2,4160.1,0.4901]
[1758595637012,7.19017953,4160.2,4160.1,0.5848]
[1758595637214,0.73744895,4160.2,4160.1,0.5848]
[1758595637369,0.51438728,4160.2,4160.1,0.5848]
[1758595637758,4.049,4160.2,4160.1,0.5848]
[1758595639463,6.45263125,4160.4,4160.1,0.5848]
[1758595639663,0.73799793,4160.3,4160.1,0.024]
[1758595639914,0.51464415,4160.2,4160.1,0.024]
[1758595640089,0.51464415,4160.2,4160.1,6.38293179]
[1758595640481,0.12,4160.7,4160.1,6.50293179]
[1758595640744,0.51462463,4160.6,4160.2,0.5608]
[1758595640999,0.51462463,4160.5,4160.3,0.0947]
[1758595641197,4.049,4160.6,4160.4,0.4661]
[1758595641380,4.049,4160.6,4160.5,0.5608]
[1758595641584,4.5634812,4160.6,4160.5,0.5608]
[1758595641779,4.5634812,4160.6,4160.5,6.91973179]
[1758595641981,4.5634812,4160.6,4160.5,6.82503179]
[1758595642177,4.5634812,4160.6,4160.5,6.35893179]
[1758595642504,4.5634812,4160.6,4160.2,0.5608]
[1758595642703,4.049,4160.6,4160.4,6.35893179]
[1758595642873,0.12,4160.7,4160.4,6.35893179]
[1758595643070,4.56341434,4160.6,4160.4,6.35893179]
[1758595643373,4.049,4160.6,4160.5,0.4661]
[1758595643595,4.56333572,4160.6,4160.4,6.35893179]
[1758595643794,4.049,4160.6,4160.4,6.82503179]
[1758595645018,4.049,4160.6,4160.5,0.4661]
[1758595645180,4.56343681,4160.6,4160.5,0.5608]
[1758595645376,4.049,4160.6,4160.5,0.4661]
[1758595647003,4.049,4160.6,4160.4,6.35893179]
[1758595647186,6.45251164,4160.6,4160.4,6.35893179]
[1758595647387,4.049,4160.6,4160.4,6.35893179]
[1758595648000,6.45250701,4160.6,4160.4,6.35893179]
[1758595648185,4.049,4160.6,4160.4,6.35893179]
[1758595648610,4.049,4160.6,4160.1,0.2387]
[1758595648611,1.18099982,4160.5,4160.1,0.024]
[1758595648923,2.52367568,4160.3,4160.1,0.024]
[1758595649108,6.45173058,4160.2,4160.1,0.024]
[1758595649513,4.048,4160.2,4160.1,0.024]
[1758595651046,6.45173058,4160.2,4160.1,0.024]
[1758595651630,4.048,4160.2,4160.1,0.024]
[1758595653542,0.12,4160.3,4160.1,0.4901]
[1758595653735,4.048,4160.3,4160.2,6.91973179]
[1758595654029,0.12,4160.6,4160.2,6.91973179]
[1758595654234,2.4033412,4160.9,4160.5,6.35893179]
[1758595654434,6.96584544,4160.8,4160.5,6.35893179]
[1758595654735,0.51446075,4160.7,4160.5,6.35893179]
[1758595654931,4.56246075,4160.6,4160.5,6.35893179]
[1758595655098,4.048,4160.6,4160.5,6.82503179]
[1758595655301,4.048,4160.7,4160.5,6.91973179]
[1758595655530,4.048,4160.6,4160.4,2.40360075]
[1758595655753,4.048,4160.8,4160.5,0.02403557]
[1758595656233,4.048,4160.8,4160.6,0.5608]
[1758595656538,4.048,4160.8,4160.7,0.4661]
[1758595656830,4.048,4160.8,4160.7,6.82503179]
[1758595657433,0.121,4161.0,4160.7,6.82503179]
[1758595657622,4.048,4160.8,4160.7,6.35893179]
[1758595659539,4.048,4160.8,4160.2,0.12]
[1758595659720,5.1317,4160.8,4160.2,0.12]
[1758595659920,0.12,4160.5,4160.1,6.38293179]
[1758595660159,4.047,4160.4,4160.1,6.38293179]
[1758595660527,4.047,4160.4,4160.2,0.4661]
[1758595661046,4.047,4160.4,4160.1,0.024]
[1758595661258,4.047,4160.4,4160.3,6.35893179]
[1758595662859,4.047,4160.4,4160.3,6.82503179]
[1758595663060,4.047,4160.4,4160.3,6.35893179]
[1758595663659,7.18,4160.7,4160.3,6.35893179]
[1758595663660,7.4182,4160.7,4160.3,6.35893179]
[1758595663956,4.2852,4160.6,4160.3,6.35893179]
[1758595664160,6.68871824,4160.6,4160.3,6.35893179]
[1758595664325,0.6668,4160.5,4160.3,6.35893179]
[1758595664859,0.2382,4160.5,4160.3,6.35893179]
[1758595665151,4.047,4160.6,4160.3,6.35893179]
[1758595665351,0.2382,4160.4,4160.3,6.35893179]
[1758595665525,4.7112,4160.6,4160.3,6.35893179]
[1758595665739,0.2356,4160.5,4160.3,6.35893179]
[1758595667859,0.2356,4160.4,4160.3,6.35893179]
[1758595668438,0.6865,4160.4,4160.3,6.35893179]
[1758595669235,0.2356,4160.4,4160.3,6.35893179]
[1758595670832,4.047,4160.6,4160.3,6.35893179]
[1758595671030,0.51521798,4160.5,4160.3,6.35893179]
[1758595671280,4.047,4160.6,4160.3,6.35893179]
[1758595671562,0.51521523,4160.5,4160.3,6.35893179]
[1758595671762,4.047,4160.6,4160.3,6.35893179]
[1758595671923,0.51521373,4160.5,4160.3,6.35893179]
[1758595672141,7.18,4160.7,4160.3,8.7626046]
[1758595672142,4.047,4160.4,4160.3,8.7626046]
[1758595672341,4.047,4160.4,4160.3,9.2996046]
[1758595672566,4.047,4160.4,4160.3,6.89593179]
[1758595672977,0.12,4160.7,4160.3,6.89593179]
[1758595673278,4.046,4160.7,4160.6,6.35893179]
[1758595673476,4.56136433,4160.7,4160.6,6.35893179]
[1758595675108,4.56136433,4160.7,4160.6,6.89593179]
[1758595675259,4.56136433,4160.7,4160.6,6.35893179]
[1758595676904,4.56136433,4160.7,4160.6,8.76243128]
[1758595677069,0.51536433,4160.7,4160.6,8.76243128]
[1758595677274,4.046,4160.8,4160.6,9.20473128]
[1758595677504,0.001,4161.0,4160.7,0.537]
[1758595677816,0.001,4161.0,4160.9,2.4033262]
[1758595677956,0.51620751,4161.0,4160.9,2.4033262]
[1758595678251,0.001,4161.0,4160.9,3.08435946]
[1758595678454,0.001,4161.0,4160.9,3.0603262]
[1758595678993,0.001,4161.0,4160.9,9.44329125]
[1758595679200,0.001,4161.0,4160.9,13.46525799]
[1758595679400,0.001,4161.0,4160.9,16.46525799]
[1758595682793,0.001,4161.0,4160.9,18.54325799]
[1758595685802,0.001,4161.0,4160.9,18.44855799]
[1758595686111,0.001,4161.0,4160.9,11.88225799]
[1758595686282,0.001,4161.0,4160.9,15.92725799]
[1758595686692,0.001,4161.0,4160.9,10.47123062]
[1758595686879,0.6875,4161.0,4160.9,3.12]
[1758595687097,0.6875,4161.0,4160.9,7.165]
[1758595689205,0.6875,4161.0,4160.5,7.35123062]
[1758595689392,0.6875,4161.0,4160.3,0.004]
[1758595689393,0.6865,4160.9,4160.3,0.004]
[1758595689705,0.6865,4160.9,4160.4,4.044]
[1758595689898,0.6865,4160.8,4160.4,4.044]
[1758595690092,0.6865,4160.7,4160.3,0.004]
[1758595690283,0.4509,4160.6,4160.3,4.048]
[1758595690483,0.001,4161.0,4160.3,0.004]
[1758595690484,0.6865,4160.5,4160.3,0.004]
[1758595690685,2.40361503,4160.4,4160.3,0.004]
[1758595691173,3.09011503,4160.4,4160.3,0.004]
[1758595691368,0.6865,4160.4,4160.3,0.004]
[1758595692808,0.001,4161.0,4160.3,0.004]
[1758595693122,0.001,4161.0,4160.8,7.35123062]
[1758595694024,0.001,4161.0,4160.8,9.75456552]
[1758595694219,0.001,4161.0,4160.8,7.35123062]
[1758595695088,0.001,4161.0,4160.8,9.754599]
[1758595695393,0.001,4161.0,4160.8,7.35123062]
[1758595695595,0.2375,4160.9,4160.7,4.044]
[1758595695992,0.4544,4161.0,4160.7,4.044]
[1758595696309,0.2375,4160.8,4160.7,4.044]
[1758595696508,0.6909,4160.8,4160.7,4.044]
[1758595697835,0.001,4161.0,4160.7,2.40344172]
[1758595698238,0.001,4161.0,4160.8,0.02403383]
[1758595698396,0.001,4161.0,4160.7,2.40339262]
[1758595698601,0.001,4161.0,4160.9,9.75455682]
[1758595699209,0.001,4161.0,4160.9,4.164]
[1758595699431,0.001,4161.0,4160.6,4.048]
[1758595699595,0.4544,4161.0,4160.6,6.57146278]
[1758595699795,0.2375,4160.9,4160.7,2.40343827]
[1758595700415,0.2375,4160.9,4160.6,6.57149004]
[1758595700841,0.2375,4160.9,4160.7,2.40344155]
[1758595701028,0.2375,4160.9,4160.6,4.168]
[1758595701529,0.001,4161.0,4160.9,2.4033262]
[1758595701700,0.001,4161.0,4160.9,6.47135946]
[1758595702028,0.001,4161.0,4160.9,7.1226262]
[1758595702833,0.001,4161.0,4160.9,6.5673262]
[1758595705393,0.001,4161.0,4160.9,7.0279262]
[1758595705599,0.001,4161.0,4160.9,6.5673262]
[1758595706135,0.001,4161.0,4160.9,7.1226262]
[1758595706507,0.001,4161.0,4160.9,7.0279262]
[1758595706738,0.001,4161.0,4160.9,6.5673262]
[1758595708102,0.001,4161.0,4160.9,2.5233262]
[1758595708317,0.001,4161.0,4160.9,6.5663262]
[1758595708318,0.6919,4161.0,4160.9,6.5663262]
[1758595708736,0.2385,4161.0,4160.9,6.5663262]
[1758595709122,0.2385,4161.0,4160.9,4.163]
[1758595709324,0.2385,4161.0,4160.9,6.5663262]
[1758595711236,0.2385,4161.0,4160.9,2.5233262]
[1758595711637,0.2385,4161.0,4160.9,0.12]
[1758595711939,0.2385,4161.0,4160.9,2.5233262]
[1758595712531,0.001,4161.0,4160.9,2.5233262]
[1758595712726,0.001,4161.0,4160.9,2.54735946]
[1758595713045,0.001,4161.0,4160.9,2.5233262]
[1758595713232,0.001,4161.0,4160.9,2.54735946]
[1758595714454,0.001,4161.0,4160.9,2.5233262]
[1758595718648,0.2385,4161.0,4160.9,2.5233262]
[1758595719848,0.001,4161.0,4160.9,2.5233262]
[1758595723424,0.2385,4161.0,4160.9,2.5233262]
[1758595723619,0.6919,4161.0,4160.9,2.5233262]
[1758595724141,0.2385,4161.0,4160.9,2.5233262]
[1758595724732,0.001,4161.0,4160.9,2.5233262]
[1758595724930,0.001,4161.0,4160.9,2.54735946]
[1758595725130,0.001,4161.0,4160.9,3.10265946]
[1758595725531,0.001,4161.0,4160.9,3.00325946]
[1758595726049,0.001,4161.0,4160.9,2.9792262]
[1758595726223,0.001,4161.0,4160.9,3.00325946]
[1758595726447,0.001,4161.0,4160.9,3.0739262]
[1758595727458,0.001,4161.0,4160.9,6.09795946]
[1758595727672,0.001,4161.0,4160.9,6.0739262]
[1758595728454,0.001,4161.0,4160.9,9.5653262]
[1758595729760,0.001,4161.0,4160.9,5.5233262]
[1758595730055,0.25,4161.0,4160.9,9.5653262]
[1758595730436,0.001,4161.0,4160.9,9.5653262]
[1758595740283,0.001,4161.0,4160.9,10.0212262]
[1758595740775,0.001,4161.0,4160.9,9.5653262]
[1758595741359,0.7239,4161.0,4160.9,9.5643262]
[1758595741760,0.25,4161.0,4160.9,5.5233262]
[1758595741984,0.001,4161.0,4160.9,9.5643262]
[1758595746124,0.25,4161.0,4160.9,0.12]
[1758595746296,3.12716948,4161.0,4160.8,0.004]
[1758595746586,0.8279644,4160.9,4160.8,0.004]
[1758595746952,3.9541906,4160.9,4160.8,0.004]
[1758595747162,1.77448382,4160.9,4160.8,0.004]
[1758595747365,3.9541906,4160.9,4160.8,0.004]
[1758595749681,7.9951906,4160.9,4160.8,0.004]
[1758595749859,8.21852483,4160.9,4160.8,0.004]
[1758595750060,8.9967358,4160.9,4160.8,0.004]
[1758595750288,8.35249406,4160.9,4160.8,0.004]
[1758595750482,8.99669267,4160.9,4160.8,0.004]
[1758595751275,8.21852483,4160.9,4160.8,0.004]
[1758595751796,9.14447186,4160.9,4160.8,0.004]
[1758595751978,9.01052483,4160.9,4160.8,0.004]
[1758595752788,8.21852483,4160.9,4160.8,0.004]
[1758595752989,10.29652483,4160.9,4160.8,0.004]
[1758595753544,11.08852483,4160.9,4160.8,0.004]
[1758595753792,11.22247944,4160.9,4160.8,0.004]
[1758595753996,4.31158183,4160.9,4160.8,0.004]
[1758595754168,8.99613363,4160.9,4160.8,0.004]
[1758595754370,10.29655916,4160.9,4160.8,0.004]
[1758595755093,17.35655916,4160.9,4160.8,0.004]
[1758595755778,18.13415671,4160.9,4160.8,0.004]
[1758595756293,17.35655916,4160.9,4160.8,0.004]
[1758595756595,18.92615876,4160.9,4160.8,0.004]
[1758595759087,18.14855916,4160.9,4160.8,0.004]
[1758595759699,21.28254252,4160.9,4160.8,0.004]
[1758595760201,20.9251906,4160.9,4160.8,0.004]
[1758595760831,3.792,4160.8,4160.6,0.004]
[1758595761131,6.19561503,4160.4,4160.3,0.004]
[1758595761326,11.10873278,4160.4,4160.3,0.004]
[1758595761674,11.79063278,4160.4,4160.3,0.004]
[1758595761874,13.97414882,4160.4,4160.3,0.004]
[1758595762291,11.57053379,4160.4,4159.4,0.29938375]
[1758595762510,12.55194993,4160.2,4159.4,0.29938375]
[1758595762694,14.28025052,4160.2,4159.4,0.29938375]
[1758595762900,14.96215052,4160.2,4159.4,0.29938375]
[1758595763080,11.04876877,4160.2,4159.4,0.29938375]
[1758595763282,16.16154896,4160.2,4159.4,0.29938375]
[1758595763688,16.95354896,4160.2,4159.4,0.29938375]
[1758595764905,16.31158593,4160.2,4159.4,0.29938375]
[1758595765122,22.66780528,4160.2,4159.4,0.29938375]
[1758595765328,16.31158593,4160.2,4159.4,0.29938375]
[1758595765522,10.83423277,4160.2,4159.4,0.29938375]
[1758595765821,13.73592197,4160.2,4159.4,0.29938375]
[1758595766028,7.37312197,4160.2,4159.4,0.29938375]
[1758595766218,13.73592197,4160.2,4159.4,0.29938375]
[1758595766419,13.869596,4160.2,4159.4,0.29938375]
[1758595766722,14.51124284,4160.2,4159.4,0.29938375]
[1758595766925,16.29798845,4160.2,4159.4,0.29938375]
[1758595767624,16.29798457,4160.2,4159.4,0.29938375]
[1758595767807,8.70408457,4160.2,4159.5,0.4596]
[1758595767992,12.26202197,4160.2,4159.5,0.4596]
[1758595768422,12.50482197,4160.2,4159.5,0.4596]
[1758595768589,10.54019139,4160.2,4159.5,0.4596]
[1758595768788,9.63524745,4160.2,4159.5,0.4596]
[1758595769215,9.63524745,4160.2,4159.6,0.004]
[1758595769411,9.63624745,4160.2,4159.6,0.004]
[1758595769724,11.17658795,4160.2,4159.6,0.004]
[1758595771003,10.93378795,4160.2,4159.6,0.004]
[1758595771330,11.17658795,4160.2,4159.6,0.004]
[1758595771531,4.81278795,4160.2,4159.6,0.004]
[1758595771826,9.63624745,4160.2,4159.6,0.0987]
[1758595772454,3.51524745,4160.2,4160.0,6.35621935]
[1758595772640,9.63624745,4160.2,4160.0,6.35621935]
[1758595773418,9.87904745,4160.2,4160.0,6.35621935]
[1758595773751,9.87904745,4160.2,4159.6,6.36021935]
[1758595773752,10.54125305,4160.2,4159.6,6.36021935]
[1758595774050,11.72276515,4160.2,4159.6,6.36021935]
[1758595774254,11.94597332,4160.2,4159.6,6.36021935]
[1758595775764,12.72156577,4160.2,4159.6,6.36021935]
[1758595776340,12.07991893,4160.2,4159.6,6.36021935]
[1758595777254,12.07991893,4160.2,4159.6,0.004]
[1758595778857,5.27701893,4160.2,4159.7,6.35621935]
[1758595779154,9.99240123,4160.2,4159.7,6.35621935]
[1758595780335,10.67430123,4160.2,4159.6,6.36021935]
[1758595780554,10.23520123,4160.2,4159.6,6.36021935]
[1758595781044,9.99240123,4160.2,4159.9,6.35621935]
[1758595781620,3.87240123,4160.2,4159.9,6.35621935]
[1758595781825,0.87240123,4160.2,4159.9,6.35621935]
[1758595782054,4.55624745,4160.2,4160.1,0.1187]
[1758595782225,4.67624745,4160.2,4160.1,0.5783]
[1758595782569,4.67624745,4160.2,4160.1,2.98208837]
[1758595782856,4.041,4160.2,4160.1,0.5783]
[1758595783069,4.041,4160.2,4160.1,2.98208837]
[1758595783432,0.001,4161.0,4160.1,0.5783]
[1758595783657,0.001,4161.0,4160.9,6.35621935]
[1758595783843,2.19,4161.0,4160.9,6.35621935]
[1758595784055,2.19,4161.0,4160.9,6.91051935]
[1758595784459,2.19,4161.0,4160.9,6.81581935]
[1758595784961,2.19,4161.0,4160.9,6.35621935]
[1758595785162,2.70556173,4161.0,4160.9,6.35621935]
[1758595785365,2.19,4161.0,4160.9,6.35621935]
[1758595785729,2.70581428,4161.0,4160.9,6.35621935]
[1758595786353,2.19,4161.0,4160.9,6.35621935]
[1758595794555,0.001,4161.0,4160.9,6.35621935]
[1758595794754,4.161,4161.0,4160.9,6.90531935]
[1758595795169,4.161,4161.0,4160.9,6.35621935]
[1758595801363,0.001,4161.0,4160.9,9.30864555]
[1758595801972,0.001,4161.0,4160.9,13.34764555]
[1758595802172,0.001,4161.5,4161.4,2.40303743]
[1758595802383,0.001,4161.5,4161.4,6.35621935]
[1758595802567,0.001,4161.5,4161.4,6.90531935]
[1758595804300,0.001,4161.5,4161.4,9.30835678]
[1758595804495,0.001,4161.5,4161.4,6.90531935]
[1758595805707,0.001,4161.5,4161.1,4.159]
[1758595805867,0.2421,4161.5,4161.4,6.35621935]
[1758595806706,0.2421,4161.5,4161.2,6.35621935]
[1758595806707,0.12,4161.4,4161.2,6.35621935]
[1758595806890,0.2411,4161.3,4161.2,6.35621935]
[1758595807290,0.7064,4161.3,4161.2,6.35621935]
[1758595808586,0.12,4161.2,4160.9,7.35233271]
[1758595808876,0.12,4161.0,4160.9,7.35233271]
[1758595810107,0.001,4161.5,4160.9,7.90143271]
[1758595810404,0.63437079,4161.4,4161.3,7.35233271]
[1758595810576,0.001,4161.5,4161.3,7.90143271]
[1758595810773,0.001,4161.5,4161.4,0.5491]
[1758595810971,0.001,4161.5,4161.4,2.95213743]
[1758595811178,0.001,4161.5,4161.4,7.0141678]
[1758595811387,0.001,4161.5,4161.4,7.11013743]
[1758595811976,0.001,4161.9,4161.8,2.40280647]
[1758595812178,0.001,4161.9,4161.8,9.87513918]
[1758595812410,0.001,4161.9,4161.8,10.42423918]
[1758595814210,0.001,4161.9,4161.8,7.47233271]
[1758595814573,0.2421,4161.9,4161.8,7.35233271]
[1758595816479,0.7129,4161.9,4161.8,7.35233271]
[1758595816685,0.001,4161.9,4161.8,7.35233271]
[1758595818733,0.001,4161.9,4161.3,4.038]
[1758595818908,0.001,4161.9,4161.8,7.35233271]
[1758595820328,1.23175997,4161.9,4161.7,7.35233271]
[1758595820534,1.94884411,4161.8,4161.7,7.35233271]
[1758595820826,2.1721829,4161.8,4161.7,7.35233271]
[1758595821060,9.2321829,4161.8,4161.5,0.004]
[1758595821345,0.98544411,4161.7,4161.5,0.004]
[1758595821530,0.51464411,4161.6,4161.5,0.004]
[1758595821831,3.06132829,4161.6,4161.5,0.004]
[1758595822035,4.17625569,4161.6,4161.5,0.004]
[1758595822235,5.78929954,4161.6,4161.5,0.004]
[1758595822602,5.92332476,4161.6,4161.5,0.004]
[1758595827538,7.16622476,4161.6,4161.5,0.004]
[1758595827944,6.52209736,4161.6,4161.5,0.004]
[1758595828306,14.22622476,4161.6,4161.5,0.004]
[1758595828509,11.61164411,4161.6,4161.5,0.557]
[1758595828807,11.097,4161.6,4161.5,0.557]
[1758595829437,7.06,4161.6,4161.5,0.557]
[1758595829746,7.06,4161.6,4161.5,0.004]
[1758595830444,7.57516058,4161.6,4161.5,0.004]
[1758595831948,7.57516058,4161.6,4161.5,0.557]
[1758595831949,7.06,4161.6,4161.5,0.557]
[1758595832110,7.06,4161.6,4161.5,0.004]
[1758595833723,0.12,4161.7,4161.5,2.86527969]
[1758595834054,0.001,4161.9,4161.6,2.95592195]
[1758595834055,4.037,4161.8,4161.6,2.95592195]
[1758595834222,0.51508715,4161.7,4161.6,2.40292195]
[1758595834423,4.038,4161.9,4161.7,2.40281644]
[1758595834639,4.038,4161.9,4161.5,2.40696646]
[1758595834843,0.001,4161.9,4161.6,0.553]
[1758595835158,0.001,4161.9,4161.7,0.553]
[1758595835450,0.001,4161.9,4161.7,7.90533271]
[1758595835651,0.001,4161.9,4161.7,10.21348575]
[1758595835953,0.001,4161.9,4161.8,2.86110647]
[1758595836314,0.001,4161.9,4161.8,2.95580647]
[1758595836714,0.001,4161.9,4161.8,2.86110647]
[1758595836910,0.001,4161.9,4161.7,9.75518154]
[1758595837857,0.001,4161.9,4161.5,7.47633271]
[1758595838362,0.001,4161.9,4161.5,9.8792871]